[Event "*** Titled Tuesday Blitz"]
[Site "Chess.com"]
[Date "2021.03.09"]
[Round "1"]
[White "bylavochka"]
[Black "ChessAurochs"]
[Result "0-1"]
[WhiteElo "2206"]
[BlackElo "2535"]
[TimeControl "180+1"]
[EndTime "10:06:21 PST"]
[Termination "ChessAurochs won on time"]

1. e4 {[%clk 0:02:59.2]} 1... e5 {[%clk 0:02:58.2]} 2. Nc3 {[%clk 0:02:58.8]}
2... Nc6 {[%clk 0:02:51.1]} 3. g3 {[%clk 0:02:58]} 3... Bc5 {[%clk 0:02:45.1]}
4. Bg2 {[%clk 0:02:57.5]} 4... Nf6 {[%clk 0:02:45]} 5. Nge2 {[%clk 0:02:57.6]}
5... a5 {[%clk 0:02:45.1]} 6. d3 {[%clk 0:02:54.6]} 6... d6 {[%clk 0:02:42.6]}
7. h3 {[%clk 0:02:54.8]} 7... Be6 {[%clk 0:02:40.8]} 8. a3 {[%clk 0:02:49.8]}
8... Qd7 {[%clk 0:02:36.4]} 9. Be3 {[%clk 0:02:41.1]} 9... Bxe3 {[%clk
0:02:35.1]} 10. fxe3 {[%clk 0:02:42]} 10... O-O {[%clk 0:02:30.7]} 11. g4 {[%clk
0:02:27]} 11... h6 {[%clk 0:02:21.7]} 12. Ng3 {[%clk 0:02:24.6]} 12... Rfb8
{[%clk 0:02:19.9]} 13. O-O {[%clk 0:02:20.5]} 13... Nh7 {[%clk 0:02:14.3]} 14.
Nf5 {[%clk 0:02:19.3]} 14... b5 {[%clk 0:02:12.6]} 15. Nd5 {[%clk 0:02:02.8]}
15... Bxd5 {[%clk 0:02:03.5]} 16. exd5 {[%clk 0:02:02.6]} 16... Ne7 {[%clk
0:02:04.1]} 17. Ng3 {[%clk 0:01:42.9]} 17... b4 {[%clk 0:01:56.1]} 18. axb4
{[%clk 0:01:41.4]} 18... Rxb4 {[%clk 0:01:57]} 19. b3 {[%clk 0:01:36.2]} 19...
a4 {[%clk 0:01:55.4]} 20. bxa4 {[%clk 0:01:35.7]} 20... Raxa4 {[%clk 0:01:56.3]}
21. Rxa4 {[%clk 0:01:35.8]} 21... Qxa4 {[%clk 0:01:57.1]} 22. Qf3 {[%clk
0:00:57.8]} 22... Ng5 {[%clk 0:01:46.6]} 23. Qe2 {[%clk 0:00:58.3]} 23... Rb2
{[%clk 0:01:41]} 24. Rc1 {[%clk 0:00:32.8]} 24... Qa2 {[%clk 0:01:37.1]} 25. h4
{[%clk 0:00:32.1]} 25... Nh7 {[%clk 0:01:37.1]} 26. Qf3 {[%clk 0:00:26.9]} 26...
Rxc2 {[%clk 0:01:33]} 27. Rf1 {[%clk 0:00:26.9]} 27... f6 {[%clk 0:01:25.7]} 28.
Ne4 {[%clk 0:00:11.1]} 28... Qxd5 {[%clk 0:01:19.6]} 29. g5 {[%clk 0:00:06.5]}
29... f5 {[%clk 0:01:11.1]} 30. gxh6 {[%clk 0:00:02]} 30... fxe4 {[%clk
0:01:06.8]} 31. Qg4 {[%clk 0:00:01.6]} 31... g6 {[%clk 0:00:58.7]} 0-1

[Event "*** Titled Tuesday Blitz"]
[Site "Chess.com"]
[Date "2021.03.09"]
[Round "1"]
[White "IANOV0007"]
[Black "Sibelephant"]
[Result "0-1"]
[WhiteElo "2483"]
[BlackElo "3083"]
[TimeControl "180+1"]
[EndTime "10:06:22 PST"]
[Termination "Sibelephant won by resignation"]

1. Nf3 {[%clk 0:02:58.6]} 1... d5 {[%clk 0:02:58.7]} 2. g3 {[%clk 0:02:57.2]}
2... g6 {[%clk 0:02:58.1]} 3. Bg2 {[%clk 0:02:57]} 3... Bg7 {[%clk 0:02:58.6]}
4. O-O {[%clk 0:02:56.9]} 4... e5 {[%clk 0:02:58.1]} 5. d3 {[%clk 0:02:56.9]}
5... Nc6 {[%clk 0:02:58.2]} 6. Nbd2 {[%clk 0:02:57]} 6... Nge7 {[%clk
0:02:56.8]} 7. e4 {[%clk 0:02:56.6]} 7... O-O {[%clk 0:02:56.9]} 8. c3 {[%clk
0:02:55.7]} 8... a5 {[%clk 0:02:56.2]} 9. a4 {[%clk 0:02:54.7]} 9... h6 {[%clk
0:02:52.7]} 10. Re1 {[%clk 0:02:54.3]} 10... Re8 {[%clk 0:02:49.9]} 11. exd5
{[%clk 0:02:53]} 11... Nxd5 {[%clk 0:02:49.9]} 12. Nc4 {[%clk 0:02:52.8]} 12...
Bf5 {[%clk 0:02:49.6]} 13. Nh4 {[%clk 0:02:51.4]} 13... Be6 {[%clk 0:02:49.4]}
14. Nf3 {[%clk 0:02:50.5]} 14... f6 {[%clk 0:02:49.4]} 15. Qe2 {[%clk
0:02:47.3]} 15... Qd7 {[%clk 0:02:41.7]} 16. Bd2 {[%clk 0:02:45.3]} 16... Rad8
{[%clk 0:02:39.5]} 17. Rad1 {[%clk 0:02:45]} 17... Bf7 {[%clk 0:02:37.7]} 18.
Bc1 {[%clk 0:02:44.2]} 18... f5 {[%clk 0:02:27.6]} 19. Nfd2 {[%clk 0:02:40.2]}
19... Re7 {[%clk 0:02:21]} 20. Nb3 {[%clk 0:02:38.6]} 20... b6 {[%clk
0:02:19.8]} 21. Qc2 {[%clk 0:02:34.8]} 21... Rde8 {[%clk 0:02:08.7]} 22. Na3
{[%clk 0:02:31.9]} 22... Kh7 {[%clk 0:01:57.3]} 23. Nb5 {[%clk 0:02:30.7]} 23...
Nd8 {[%clk 0:01:51.8]} 24. Nd2 {[%clk 0:02:29.2]} 24... c6 {[%clk 0:01:35.8]}
25. Na3 {[%clk 0:02:28]} 25... Qc7 {[%clk 0:01:24.6]} 26. Ndc4 {[%clk
0:02:25.7]} 26... Ne6 {[%clk 0:01:23.2]} 27. Ne3 {[%clk 0:02:20.5]} 27... Nc5
{[%clk 0:01:07.2]} 28. Nac4 {[%clk 0:02:14.8]} 28... Nf4 {[%clk 0:01:07.3]} 29.
Bh1 {[%clk 0:02:03.8]} 29... Nh3+ {[%clk 0:01:04.8]} 30. Kf1 {[%clk 0:02:02.2]}
30... f4 {[%clk 0:01:01.9]} 31. Ng2 {[%clk 0:01:45.6]} 31... fxg3 {[%clk
0:00:43.3]} 32. hxg3 {[%clk 0:01:43.5]} 32... Bd5 {[%clk 0:00:43.2]} 33. Re4
{[%clk 0:01:37.7]} 33... Nxe4 {[%clk 0:00:42.3]} 34. dxe4 {[%clk 0:01:34.5]}
34... Bxc4+ {[%clk 0:00:42.5]} 35. Ke1 {[%clk 0:01:34.5]} 35... Rf8 {[%clk
0:00:40.3]} 36. Be3 {[%clk 0:01:32]} 36... Ref7 {[%clk 0:00:39.5]} 37. Rd2
{[%clk 0:01:28.5]} 37... Ng5 {[%clk 0:00:38.5]} 38. Nh4 {[%clk 0:01:27]} 38...
Qc8 {[%clk 0:00:31.2]} 39. Bg2 {[%clk 0:01:25.2]} 39... Nf3+ {[%clk 0:00:29.2]}
40. Nxf3 {[%clk 0:01:23.4]} 40... Rxf3 {[%clk 0:00:30.1]} 41. Bxf3 {[%clk
0:01:19.8]} 41... Rxf3 {[%clk 0:00:31]} 42. Qd1 {[%clk 0:01:18.9]} 42... Qh3
{[%clk 0:00:30.8]} 43. Rd3 {[%clk 0:01:15.7]} 43... Qh1+ {[%clk 0:00:28.2]} 44.
Ke2 {[%clk 0:01:13]} 44... Qxd1+ {[%clk 0:00:28.3]} 45. Kxd1 {[%clk 0:01:12.9]}
45... Bxd3 {[%clk 0:00:28.8]} 46. Bxb6 {[%clk 0:01:11.4]} 46... Bxe4 {[%clk
0:00:28.4]} 0-1

[Event "*** Titled Tuesday Blitz"]
[Site "Chess.com"]
[Date "2021.03.09"]
[Round "1"]
[White "amintabatabaei"]
[Black "DrCeltic"]
[Result "1-0"]
[WhiteElo "3008"]
[BlackElo "2480"]
[TimeControl "180+1"]
[EndTime "10:06:23 PST"]
[Termination "amintabatabaei won on time"]

1. d4 {[%clk 0:03:00.9]} 1... d5 {[%clk 0:02:55.8]} 2. Nf3 {[%clk 0:03:01.3]}
2... Nf6 {[%clk 0:02:55.7]} 3. Bf4 {[%clk 0:03:02]} 3... e6 {[%clk 0:02:55.2]}
4. e3 {[%clk 0:03:02.4]} 4... Bd6 {[%clk 0:02:55.2]} 5. Nbd2 {[%clk 0:03:02.1]}
5... b6 {[%clk 0:02:54.7]} 6. Ne5 {[%clk 0:03:01.8]} 6... O-O {[%clk 0:02:51.2]}
7. h4 {[%clk 0:02:59.9]} 7... Ba6 {[%clk 0:02:48.1]} 8. Bxa6 {[%clk 0:02:57.1]}
8... Nxa6 {[%clk 0:02:46.3]} 9. h5 {[%clk 0:02:57.7]} 9... h6 {[%clk 0:02:42.4]}
10. c3 {[%clk 0:02:55.3]} 10... c5 {[%clk 0:02:37.4]} 11. Qf3 {[%clk 0:02:54.5]}
11... Nb8 {[%clk 0:02:18.7]} 12. Qg3 {[%clk 0:02:51.3]} 12... Kh7 {[%clk
0:01:57.2]} 13. Ng6 {[%clk 0:02:42.4]} 13... fxg6 {[%clk 0:01:22.5]} 14. hxg6+
{[%clk 0:02:40.6]} 14... Kg8 {[%clk 0:01:19.7]} 15. Bxd6 {[%clk 0:02:40.4]}
15... Re8 {[%clk 0:01:19.3]} 16. Bf4 {[%clk 0:02:25.9]} 16... Nc6 {[%clk
0:01:16.6]} 17. Qh3 {[%clk 0:02:22.3]} 17... Qe7 {[%clk 0:01:10.6]} 18. Nf3
{[%clk 0:02:21.2]} 18... Ne4 {[%clk 0:00:58.2]} 19. Kf1 {[%clk 0:02:08.8]} 19...
Rac8 {[%clk 0:00:53.4]} 20. g4 {[%clk 0:02:08.5]} 20... cxd4 {[%clk 0:00:47.9]}
21. cxd4 {[%clk 0:02:09.4]} 21... Qf6 {[%clk 0:00:30.1]} 22. g5 {[%clk
0:02:06.7]} 22... Qxg6 {[%clk 0:00:28.4]} 23. gxh6 {[%clk 0:02:03.6]} 23... Nf6
{[%clk 0:00:16.1]} 24. hxg7 {[%clk 0:01:49.3]} 24... Qd3+ {[%clk 0:00:15.8]} 25.
Kg2 {[%clk 0:01:49.8]} 25... Qg6+ {[%clk 0:00:15.6]} 26. Ng5 {[%clk 0:01:31.4]}
26... Kxg7 {[%clk 0:00:10.6]} 27. Qg3 {[%clk 0:01:32]} 27... Rh8 {[%clk
0:00:10]} 28. Nxe6+ {[%clk 0:01:31]} 28... Kf7 {[%clk 0:00:10.2]} 29. Ng5+
{[%clk 0:01:30.3]} 29... Kg7 {[%clk 0:00:10.2]} 30. Rxh8 {[%clk 0:01:27.2]}
30... Rxh8 {[%clk 0:00:08.9]} 31. Rc1 {[%clk 0:01:27.9]} 31... Rc8 {[%clk
0:00:05.7]} 32. Ne6+ {[%clk 0:01:20.8]} 32... Kf7 {[%clk 0:00:05.4]} 33. Rxc6
{[%clk 0:01:18.9]} 33... Qe4+ {[%clk 0:00:01.6]} 34. f3 {[%clk 0:01:16]} 1-0

[Event "*** Titled Tuesday Blitz"]
[Site "Chess.com"]
[Date "2021.03.09"]
[Round "1"]
[White "Arvids_Andrejevs"]
[Black "ShimanovAlex"]
[Result "0-1"]
[WhiteElo "2416"]
[BlackElo "2785"]
[TimeControl "180+1"]
[EndTime "10:06:26 PST"]
[Termination "ShimanovAlex won by resignation"]

1. e4 {[%clk 0:02:39.4]} 1... Nc6 {[%clk 0:02:52.3]} 2. d4 {[%clk 0:02:38.5]}
2... d5 {[%clk 0:02:51.7]} 3. exd5 {[%clk 0:02:38.8]} 3... Qxd5 {[%clk
0:02:51.7]} 4. Nf3 {[%clk 0:02:38.6]} 4... Bg4 {[%clk 0:02:49.3]} 5. Be2 {[%clk
0:02:38.9]} 5... O-O-O {[%clk 0:02:48.9]} 6. Be3 {[%clk 0:02:36.8]} 6... e5
{[%clk 0:02:44.1]} 7. c3 {[%clk 0:02:31.4]} 7... Nf6 {[%clk 0:02:34.1]} 8. h3
{[%clk 0:02:30.1]} 8... Bh5 {[%clk 0:02:13.8]} 9. O-O {[%clk 0:02:28.6]} 9... e4
{[%clk 0:02:12.3]} 10. Nfd2 {[%clk 0:02:24.9]} 10... Bxe2 {[%clk 0:02:11.6]} 11.
Qxe2 {[%clk 0:02:25.8]} 11... Qf5 {[%clk 0:02:10.8]} 12. b4 {[%clk 0:02:19.9]}
12... Bd6 {[%clk 0:02:07.7]} 13. Nc4 {[%clk 0:02:12.3]} 13... h5 {[%clk
0:02:02.6]} 14. b5 {[%clk 0:02:10.2]} 14... Ne7 {[%clk 0:02:02.2]} 15. a4 {[%clk
0:02:00.1]} 15... Ned5 {[%clk 0:02:00.5]} 16. Nxd6+ {[%clk 0:01:56.7]} 16...
cxd6 {[%clk 0:01:58.1]} 17. c4 {[%clk 0:01:54.7]} 17... Nf4 {[%clk 0:01:57.5]}
18. Bxf4 {[%clk 0:01:53.2]} 18... Qxf4 {[%clk 0:01:58.4]} 19. Qe3 {[%clk
0:01:45.9]} 19... g5 {[%clk 0:01:58]} 20. Nc3 {[%clk 0:01:36.5]} 20... Kb8
{[%clk 0:01:53.2]} 21. a5 {[%clk 0:01:30.7]} 21... Rc8 {[%clk 0:01:45.9]} 22.
Qxf4 {[%clk 0:01:21.1]} 22... gxf4 {[%clk 0:01:45.7]} 23. Rfe1 {[%clk
0:01:21.3]} 23... Rhe8 {[%clk 0:01:44.3]} 24. Ra4 {[%clk 0:01:19.9]} 24... Re7
{[%clk 0:01:35.7]} 25. b6 {[%clk 0:01:11.4]} 25... Rc6 {[%clk 0:01:27.7]} 26.
Nd5 {[%clk 0:01:07.6]} 26... Nxd5 {[%clk 0:01:27]} 27. cxd5 {[%clk 0:01:08.5]}
27... Rc2 {[%clk 0:01:27]} 28. Rb4 {[%clk 0:00:38.9]} 28... f5 {[%clk
0:01:23.9]} 29. bxa7+ {[%clk 0:00:30.4]} 29... Kxa7 {[%clk 0:01:23.8]} 30. Reb1
{[%clk 0:00:30.7]} 30... Ra2 {[%clk 0:01:14.6]} 31. Rb6 {[%clk 0:00:29.3]} 31...
Rd7 {[%clk 0:01:14.2]} 32. a6 {[%clk 0:00:22.6]} 32... Rxa6 {[%clk 0:01:13.9]}
33. R6b3 {[%clk 0:00:18.8]} 33... Ra2 {[%clk 0:01:13.1]} 34. g3 {[%clk
0:00:18.9]} 34... f3 {[%clk 0:01:12.8]} 35. h4 {[%clk 0:00:18.2]} 35... Rc7
{[%clk 0:01:11.9]} 36. Rb6 {[%clk 0:00:15.7]} 36... Rc1+ {[%clk 0:01:09.3]} 37.
Rxc1 {[%clk 0:00:15]} 37... Kxb6 {[%clk 0:01:09.9]} 38. Rb1+ {[%clk 0:00:15.5]}
38... Kc7 {[%clk 0:01:10.2]} 39. Rb5 {[%clk 0:00:12.6]} 39... Ra4 {[%clk
0:01:08.5]} 40. Kf1 {[%clk 0:00:11.4]} 40... Ra1+ {[%clk 0:01:08.3]} 0-1

[Event "*** Titled Tuesday Blitz"]
[Site "Chess.com"]
[Date "2021.03.09"]
[Round "1"]
[White "Slovak_fighter2000"]
[Black "Blitzstream"]
[Result "1-0"]
[WhiteElo "2421"]
[BlackElo "2741"]
[TimeControl "180+1"]
[EndTime "10:06:27 PST"]
[Termination "Slovak_fighter2000 won by checkmate"]

1. d4 {[%clk 0:02:59.1]} 1... d5 {[%clk 0:02:59]} 2. c4 {[%clk 0:02:58.4]} 2...
c6 {[%clk 0:02:58.9]} 3. Nf3 {[%clk 0:02:57.8]} 3... Nf6 {[%clk 0:02:58.9]} 4.
Nc3 {[%clk 0:02:57.6]} 4... Bf5 {[%clk 0:02:58.8]} 5. cxd5 {[%clk 0:02:55.6]}
5... Nxd5 {[%clk 0:02:59.7]} 6. e3 {[%clk 0:02:54]} 6... e6 {[%clk 0:02:59.5]}
7. Bd3 {[%clk 0:02:53.3]} 7... Bg6 {[%clk 0:02:59]} 8. O-O {[%clk 0:02:52.9]}
8... Nd7 {[%clk 0:02:58.8]} 9. e4 {[%clk 0:02:52]} 9... Nxc3 {[%clk 0:02:58.3]}
10. bxc3 {[%clk 0:02:52.9]} 10... Be7 {[%clk 0:02:58.6]} 11. Rb1 {[%clk
0:02:51.4]} 11... Qc7 {[%clk 0:02:56.9]} 12. Qe2 {[%clk 0:02:49.7]} 12... O-O
{[%clk 0:02:56.3]} 13. Be3 {[%clk 0:02:44.7]} 13... e5 {[%clk 0:02:53.4]} 14.
Nd2 {[%clk 0:02:42.5]} 14... Rfe8 {[%clk 0:02:49.9]} 15. f3 {[%clk 0:02:42.1]}
15... Rad8 {[%clk 0:02:47.7]} 16. Rfd1 {[%clk 0:02:38]} 16... f6 {[%clk
0:02:46.9]} 17. Nb3 {[%clk 0:02:34.1]} 17... Bf7 {[%clk 0:02:42.5]} 18. Bc4
{[%clk 0:02:33.3]} 18... Bxc4 {[%clk 0:02:34.2]} 19. Qxc4+ {[%clk 0:02:34.2]}
19... Kh8 {[%clk 0:02:34.6]} 20. d5 {[%clk 0:02:31.1]} 20... Nb6 {[%clk
0:02:30]} 21. Bxb6 {[%clk 0:02:24.4]} 21... Qxb6+ {[%clk 0:02:30.1]} 22. Kh1
{[%clk 0:02:24.8]} 22... cxd5 {[%clk 0:02:28.2]} 23. exd5 {[%clk 0:02:23.2]}
23... Rc8 {[%clk 0:02:24.8]} 24. Qa4 {[%clk 0:02:22.2]} 24... Red8 {[%clk
0:02:17.5]} 25. Nd4 {[%clk 0:02:06]} 25... Qa6 {[%clk 0:01:55.1]} 26. Qxa6
{[%clk 0:02:05.1]} 26... bxa6 {[%clk 0:01:53.6]} 27. Nc6 {[%clk 0:02:04.2]}
27... Rd7 {[%clk 0:01:52.9]} 28. c4 {[%clk 0:02:00.1]} 28... Bc5 {[%clk
0:01:52]} 29. Rb3 {[%clk 0:01:56]} 29... h5 {[%clk 0:01:45.9]} 30. Rdb1 {[%clk
0:01:54.4]} 30... Bb6 {[%clk 0:01:43.7]} 31. a4 {[%clk 0:01:47.6]} 31... a5
{[%clk 0:01:41.5]} 32. Rxb6 {[%clk 0:01:44.3]} 32... axb6 {[%clk 0:01:41.2]} 33.
Rxb6 {[%clk 0:01:45.2]} 33... Rd6 {[%clk 0:01:32.5]} 34. Kg1 {[%clk 0:01:44.1]}
34... Kh7 {[%clk 0:01:28.6]} 35. Kf2 {[%clk 0:01:44]} 35... g5 {[%clk
0:01:26.3]} 36. Rb7+ {[%clk 0:01:40.9]} 36... Kh6 {[%clk 0:01:25.4]} 37. Ne7
{[%clk 0:01:40]} 37... Rcd8 {[%clk 0:01:23.5]} 38. Nf5+ {[%clk 0:01:39.8]} 38...
Kg6 {[%clk 0:01:24.4]} 39. Nxd6 {[%clk 0:01:40.4]} 39... Rxd6 {[%clk 0:01:25.2]}
40. Rb5 {[%clk 0:01:37.7]} 40... Kf5 {[%clk 0:01:25.5]} 41. Rxa5 {[%clk
0:01:37.2]} 41... e4 {[%clk 0:01:25.9]} 42. Ke3 {[%clk 0:01:33.1]} 42... exf3
{[%clk 0:01:25.7]} 43. gxf3 {[%clk 0:01:34]} 43... g4 {[%clk 0:01:25.6]} 44.
fxg4+ {[%clk 0:01:33.6]} 44... Kxg4 {[%clk 0:01:25.9]} 45. Kd4 {[%clk
0:01:33.6]} 45... f5 {[%clk 0:01:26.2]} 46. c5 {[%clk 0:01:33.5]} 46... Rf6
{[%clk 0:01:26.1]} 47. Ke3 {[%clk 0:01:27.6]} 47... f4+ {[%clk 0:01:22.3]} 48.
Kf2 {[%clk 0:01:27.7]} 48... f3 {[%clk 0:01:22.8]} 49. d6 {[%clk 0:01:25.5]}
49... Rf4 {[%clk 0:01:22.8]} 50. c6 {[%clk 0:01:21.2]} 50... Rc4 {[%clk
0:01:22.3]} 51. d7 {[%clk 0:01:20]} 51... Rc2+ {[%clk 0:01:22.4]} 52. Kf1 {[%clk
0:01:15.4]} 52... Rc1+ {[%clk 0:01:22.8]} 53. Kf2 {[%clk 0:01:15.6]} 53... Rc2+
{[%clk 0:01:23.1]} 54. Ke3 {[%clk 0:01:13.2]} 54... Re2+ {[%clk 0:01:13.5]} 55.
Kd3 {[%clk 0:01:12.3]} 55... Re1 {[%clk 0:01:05.6]} 56. Rg5+ {[%clk 0:01:04.7]}
56... Kxg5 {[%clk 0:00:59.5]} 57. d8=Q+ {[%clk 0:01:03.3]} 57... Kg4 {[%clk
0:00:59]} 58. Qg8+ {[%clk 0:01:01]} 58... Kh3 {[%clk 0:00:58.8]} 59. Qg3# {[%clk
0:01:00.5]} 1-0

[Event "*** Titled Tuesday Blitz"]
[Site "Chess.com"]
[Date "2021.03.09"]
[Round "1"]
[White "rachidhuilda"]
[Black "Sanyura"]
[Result "0-1"]
[WhiteElo "2308"]
[BlackElo "2608"]
[TimeControl "180+1"]
[EndTime "10:06:27 PST"]
[Termination "Sanyura won on time"]

1. d4 {[%clk 0:02:59.2]} 1... Nf6 {[%clk 0:02:59.9]} 2. Bg5 {[%clk 0:02:56.8]}
2... Ne4 {[%clk 0:02:59.2]} 3. Bf4 {[%clk 0:02:56.5]} 3... c5 {[%clk 0:02:59.4]}
4. f3 {[%clk 0:02:56.2]} 4... Qa5+ {[%clk 0:02:59.1]} 5. c3 {[%clk 0:02:55.7]}
5... Nf6 {[%clk 0:02:59.6]} 6. Nd2 {[%clk 0:02:56]} 6... cxd4 {[%clk 0:02:58.5]}
7. Nb3 {[%clk 0:02:56.1]} 7... Qd8 {[%clk 0:02:58.5]} 8. cxd4 {[%clk 0:02:55.5]}
8... d5 {[%clk 0:02:58.9]} 9. e3 {[%clk 0:02:55.5]} 9... Nc6 {[%clk 0:02:59.5]}
10. Bd3 {[%clk 0:02:55.8]} 10... g6 {[%clk 0:02:57.6]} 11. Ne2 {[%clk
0:02:55.8]} 11... Bg7 {[%clk 0:02:57.8]} 12. O-O {[%clk 0:02:56.3]} 12... O-O
{[%clk 0:02:57.6]} 13. a3 {[%clk 0:02:56.3]} 13... h6 {[%clk 0:02:53.8]} 14. Rc1
{[%clk 0:02:52.6]} 14... Nh5 {[%clk 0:02:53.4]} 15. Kh1 {[%clk 0:02:38.8]} 15...
Nxf4 {[%clk 0:02:49.4]} 16. Nxf4 {[%clk 0:02:38.9]} 16... e5 {[%clk 0:02:43.3]}
17. dxe5 {[%clk 0:02:38.6]} 17... Nxe5 {[%clk 0:02:44.2]} 18. Nd4 {[%clk
0:02:06.3]} 18... Qb6 {[%clk 0:02:43.6]} 19. b4 {[%clk 0:02:01.1]} 19... Rd8
{[%clk 0:02:36.2]} 20. Qe2 {[%clk 0:01:47.4]} 20... Nc6 {[%clk 0:02:26.9]} 21.
Nb3 {[%clk 0:01:12.5]} 21... d4 {[%clk 0:02:10.8]} 22. e4 {[%clk 0:01:01.7]}
22... Ne5 {[%clk 0:02:07.4]} 23. Nd5 {[%clk 0:00:58.6]} 23... Qd6 {[%clk
0:01:34.9]} 24. Nxd4 {[%clk 0:00:51.8]} 24... a6 {[%clk 0:01:34.5]} 25. Nb3
{[%clk 0:00:48.7]} 25... Be6 {[%clk 0:01:34.8]} 26. Nc5 {[%clk 0:00:45.7]} 26...
Bxd5 {[%clk 0:01:25.2]} 27. exd5 {[%clk 0:00:41.9]} 27... Nxd3 {[%clk 0:01:22]}
28. Qxd3 {[%clk 0:00:41.7]} 28... b6 {[%clk 0:01:22.3]} 29. Nxa6 {[%clk
0:00:16.6]} 29... Ra7 {[%clk 0:01:18.7]} 30. b5 {[%clk 0:00:15.8]} 30... Qxd5
{[%clk 0:01:15.9]} 31. Qxd5 {[%clk 0:00:15.9]} 31... Rxd5 {[%clk 0:01:16.8]} 32.
Rfd1 {[%clk 0:00:15.4]} 32... Rxb5 {[%clk 0:01:15.7]} 33. Nc7 {[%clk 0:00:08.8]}
33... Rc5 {[%clk 0:01:16.1]} 34. Rxc5 {[%clk 0:00:08]} 34... bxc5 {[%clk
0:01:17]} 35. Rd8+ {[%clk 0:00:05.4]} 35... Kh7 {[%clk 0:01:16.7]} 36. Nb5
{[%clk 0:00:04.1]} 36... Ra5 {[%clk 0:01:17.1]} 37. Nd6 {[%clk 0:00:02.5]} 37...
Rxa3 {[%clk 0:01:16.9]} 38. g4 {[%clk 0:00:03]} 38... Rxf3 {[%clk 0:01:15.4]}
39. Rd7 {[%clk 0:00:01.3]} 39... Rd3 {[%clk 0:01:12.6]} 0-1

[Event "*** Titled Tuesday Blitz"]
[Site "Chess.com"]
[Date "2021.03.09"]
[Round "1"]
[White "Chesswizard_2007"]
[Black "CakeinSpace2002"]
[Result "1/2-1/2"]
[WhiteElo "2703"]
[BlackElo "2399"]
[TimeControl "180+1"]
[EndTime "10:06:29 PST"]
[Termination "Game drawn by agreement"]

1. e4 {[%clk 0:02:20]} 1... d5 {[%clk 0:02:57.2]} 2. exd5 {[%clk 0:02:16]} 2...
Qxd5 {[%clk 0:02:58.1]} 3. Nc3 {[%clk 0:02:16.1]} 3... Qd8 {[%clk 0:02:56.8]} 4.
Nf3 {[%clk 0:02:16]} 4... Bg4 {[%clk 0:02:55.3]} 5. Bc4 {[%clk 0:02:15.3]} 5...
e6 {[%clk 0:02:54.1]} 6. O-O {[%clk 0:02:12.4]} 6... Nf6 {[%clk 0:02:52.4]} 7.
h3 {[%clk 0:02:01.4]} 7... Bh5 {[%clk 0:02:48.6]} 8. d4 {[%clk 0:02:00]} 8... c6
{[%clk 0:02:47.7]} 9. Bg5 {[%clk 0:01:55.6]} 9... Be7 {[%clk 0:02:46.5]} 10. Qe2
{[%clk 0:01:50.7]} 10... Nbd7 {[%clk 0:02:44.2]} 11. Rad1 {[%clk 0:01:48.8]}
11... O-O {[%clk 0:02:42.9]} 12. a3 {[%clk 0:00:55.3]} 12... Nd5 {[%clk
0:02:28.8]} 13. Bxe7 {[%clk 0:00:54.2]} 13... Nxc3 {[%clk 0:02:10]} 14. Bxd8
{[%clk 0:00:41.4]} 14... Nxe2+ {[%clk 0:02:08.4]} 15. Bxe2 {[%clk 0:00:42.3]}
15... Rfxd8 {[%clk 0:02:07.7]} 16. g4 {[%clk 0:00:43]} 16... Bg6 {[%clk
0:02:06.9]} 17. Bd3 {[%clk 0:00:43.6]} 17... Bxd3 {[%clk 0:02:04.9]} 18. Rxd3
{[%clk 0:00:44.5]} 18... Nf6 {[%clk 0:02:01.9]} 19. Rfd1 {[%clk 0:00:44.6]}
19... Kf8 {[%clk 0:01:58.6]} 20. Ne5 {[%clk 0:00:44.6]} 20... Nd7 {[%clk
0:01:58.1]} 21. f4 {[%clk 0:00:43.5]} 21... Nxe5 {[%clk 0:01:56.9]} 22. dxe5
{[%clk 0:00:44.4]} 22... Rxd3 {[%clk 0:01:54]} 23. Rxd3 {[%clk 0:00:45.3]} 23...
Ke7 {[%clk 0:01:54]} 24. Kf2 {[%clk 0:00:45.9]} 24... Rd8 {[%clk 0:01:53.7]} 25.
Rxd8 {[%clk 0:00:40.3]} 25... Kxd8 {[%clk 0:01:54.6]} 26. Ke3 {[%clk 0:00:40.4]}
26... Ke7 {[%clk 0:01:51.1]} 27. b4 {[%clk 0:00:39.6]} 27... b6 {[%clk
0:01:45.5]} 28. Kd4 {[%clk 0:00:38.6]} 28... Kd7 {[%clk 0:01:43.7]} 29. a4
{[%clk 0:00:35.6]} 29... Kc7 {[%clk 0:01:38.7]} 30. h4 {[%clk 0:00:35.1]} 30...
g6 {[%clk 0:01:33.3]} 31. h5 {[%clk 0:00:34]} 31... Kd7 {[%clk 0:01:30.1]} 32.
h6 {[%clk 0:00:34.1]} 32... Ke7 {[%clk 0:01:29.3]} 33. Ke4 {[%clk 0:00:34.2]}
33... Kd7 {[%clk 0:01:15.5]} 34. c3 {[%clk 0:00:31.9]} 34... Ke7 {[%clk
0:01:14.1]} 35. Kf3 {[%clk 0:00:31.7]} 35... f6 {[%clk 0:01:08.7]} 36. exf6+
{[%clk 0:00:31.4]} 36... Kxf6 {[%clk 0:01:09.6]} 37. Ke4 {[%clk 0:00:20.4]}
37... g5 {[%clk 0:01:01]} 1/2-1/2

[Event "*** Titled Tuesday Blitz"]
[Site "Chess.com"]
[Date "2021.03.09"]
[Round "1"]
[White "RD4ever"]
[Black "anasta10"]
[Result "1-0"]
[WhiteElo "2905"]
[BlackElo "2462"]
[TimeControl "180+1"]
[EndTime "10:06:31 PST"]
[Termination "RD4ever won by resignation"]

1. d4 {[%clk 0:03:00.9]} 1... Nf6 {[%clk 0:02:57.2]} 2. c4 {[%clk 0:03:00.4]}
2... g6 {[%clk 0:02:49.2]} 3. Nc3 {[%clk 0:02:59.6]} 3... d5 {[%clk 0:02:49.7]}
4. Bg5 {[%clk 0:02:59.3]} 4... Ne4 {[%clk 0:02:47.7]} 5. Bh4 {[%clk 0:02:58.7]}
5... Nxc3 {[%clk 0:02:47.4]} 6. bxc3 {[%clk 0:02:59.6]} 6... Bg7 {[%clk
0:02:47.9]} 7. cxd5 {[%clk 0:02:56.9]} 7... Qxd5 {[%clk 0:02:47.6]} 8. e3 {[%clk
0:02:57.8]} 8... O-O {[%clk 0:02:46.1]} 9. Bxe7 {[%clk 0:02:39.2]} 9... Re8
{[%clk 0:02:46.2]} 10. Ba3 {[%clk 0:02:39.4]} 10... Na6 {[%clk 0:02:32.8]} 11.
Nf3 {[%clk 0:02:21.9]} 11... Bg4 {[%clk 0:02:32.4]} 12. Be2 {[%clk 0:02:19.5]}
12... Qa5 {[%clk 0:02:28.4]} 13. Qc1 {[%clk 0:02:12.4]} 13... c5 {[%clk
0:02:24.4]} 14. O-O {[%clk 0:02:06.5]} 14... Rac8 {[%clk 0:02:23.2]} 15. Qb2
{[%clk 0:02:02.6]} 15... Rc7 {[%clk 0:01:18.9]} 16. h3 {[%clk 0:01:56.9]} 16...
Bf5 {[%clk 0:01:17.3]} 17. Bxa6 {[%clk 0:01:48.4]} 17... Qxa6 {[%clk 0:01:16.2]}
18. Bxc5 {[%clk 0:01:48.3]} 18... b6 {[%clk 0:01:17]} 19. Bd6 {[%clk 0:01:38.8]}
19... Rc6 {[%clk 0:01:09.6]} 20. Be5 {[%clk 0:01:39.4]} 20... Bf8 {[%clk
0:01:07.6]} 21. a4 {[%clk 0:01:33.9]} 21... Qb7 {[%clk 0:01:06]} 22. Bg3 {[%clk
0:01:10.7]} 22... Rec8 {[%clk 0:01:01.1]} 23. Rfc1 {[%clk 0:01:10.4]} 23... Be4
{[%clk 0:00:55.9]} 24. Nd2 {[%clk 0:01:04.2]} 24... Bxg2 {[%clk 0:00:37.5]} 25.
Kxg2 {[%clk 0:01:05.1]} 25... Ba3 {[%clk 0:00:35.7]} 26. Qxa3 {[%clk 0:00:49.8]}
26... Rxc3+ {[%clk 0:00:34.6]} 27. Nf3 {[%clk 0:00:50.7]} 27... Rxa3 {[%clk
0:00:34.3]} 28. Rxc8+ {[%clk 0:00:50.5]} 28... Qxc8 {[%clk 0:00:34.5]} 29. Rxa3
{[%clk 0:00:51.4]} 29... Qc6 {[%clk 0:00:33.9]} 30. Rd3 {[%clk 0:00:50.4]} 30...
Qe4 {[%clk 0:00:32.2]} 31. Rd2 {[%clk 0:00:50.3]} 31... Qd5 {[%clk 0:00:27]} 32.
e4 {[%clk 0:00:46.8]} 32... Qxe4 {[%clk 0:00:27.2]} 33. d5 {[%clk 0:00:47.7]}
1-0